fUST/lending_fUST_20240904
["ID","MTS","AMOUNT","RATE_DAILY","PERIOD"]
[337086305,1725417049095,-709.24,0.00027397,2]
[337086306,1725417049104,-500.0,0.00027397,2]
[337086307,1725417049118,-504.24920898,0.00027397,2]
[337086308,1725417049128,-500.0,0.00027397,2]
[337086309,1725417049137,-500.0,0.00027397,2]
[337086310,1725417049146,-500.0,0.00027397,2]
[337086311,1725417049155,-875.46,0.00027397,2]
[337086312,1725417049164,-500.0,0.00027397,2]
[337086313,1725417049174,-500.0,0.00027397,2]
[337086314,1725417049183,-500.0,0.00027397,2]
[337086315,1725417049192,-505.64151724,0.00027397,2]
[337086316,1725417049207,-500.0,0.00027397,2]
[337086317,1725417049217,-500.0,0.00027397,2]
[337086318,1725417049227,-500.0,0.00027397,2]
[337086319,1725417049236,-500.0,0.00027397,2]
[337086320,1725417049247,-500.0,0.00027397,2]
[337086321,1725417049257,-1260.65,0.00027397,2]
[337086322,1725417049267,-552.02,0.00027397,2]
[337086323,1725417049278,-437.11598776,0.00027397,2]
[337086324,1725417049495,-863.89,0.00027397,2]
[337086325,1725417049505,-500.0,0.00027397,2]
[337086326,1725417049515,-505.19034384,0.00027397,2]
[337086327,1725417049524,-500.0,0.00027397,2]
[337086328,1725417049534,-500.0,0.00027397,2]
[337086329,1725417049545,-500.0,0.00027397,2]
[337086330,1725417049555,-500.0,0.00027397,2]
[337086331,1725417049566,-500.0,0.00027397,2]
[337086332,1725417049576,-500.0,0.00027397,2]
[337086333,1725417049585,-500.0,0.00027397,2]
[337086334,1725417049594,-500.0,0.00027397,2]
[337086335,1725417049603,-500.0,0.00027397,2]
[337086336,1725417049615,-500.0,0.00027397,2]
[337086337,1725417049624,-500.0,0.00027397,2]
[337086338,1725417049633,-500.0,0.00027397,2]
[337086339,1725417049642,-500.0,0.00027397,2]
[337086340,1725417049652,-509.31649831,0.00027397,2]
[337086341,1725417049661,-500.0,0.00027397,2]
[337086342,1725417049670,-500.0,0.00027397,2]
[337086343,1725417049680,-500.0,0.00027397,2]
[337086344,1725417049691,-500.0,0.00027397,2]
[337086345,1725417049701,-500.0,0.00027397,2]
[337086346,1725417049712,-334.09035446,0.00027397,2]
[337086347,1725417049723,-500.0,0.00027397,2]
[337086348,1725417049732,-500.0,0.00027397,2]
[337086349,1725417049742,-500.0,0.00027397,2]
[337086350,1725417049751,-205.04700825,0.00027397,2]
[337086351,1725417049762,-500.0,0.00027397,2]
[337086352,1725417049771,-502.30753759,0.00027397,2]
[337086353,1725417049782,-500.0,0.00027397,2]
[337086354,1725417049791,-500.0,0.00027397,2]
[337086355,1725417049800,-500.0,0.00027397,2]
[337086356,1725417049810,-500.0,0.00027397,2]
[337086357,1725417049820,-504.36381868,0.00027397,2]
[337086358,1725417049829,-500.0,0.00027397,2]
[337086359,1725417049838,-500.0,0.00027397,2]
[337086360,1725417049849,-500.0,0.00027397,2]
[337086361,1725417049861,-500.0,0.00027397,2]
[337086362,1725417049870,-500.0,0.00027397,2]
[337086363,1725417049880,-500.0,0.00027397,2]
[337086364,1725417049890,-500.0,0.00027397,2]
[337086365,1725417049900,-500.0,0.00027397,2]
[337086366,1725417049909,-500.0,0.00027397,2]
[337086367,1725417049918,-500.0,0.00027397,2]
[337086368,1725417049928,-500.0,0.00027397,2]
[337086369,1725417049938,-500.0,0.00027397,2]
[337086370,1725417049947,-500.0,0.00027397,2]
[337086371,1725417049957,-500.0,0.00027397,2]
[337086372,1725417049967,-508.54773814,0.00027397,2]
[337086373,1725417049976,-500.0,0.00027397,2]
[337086374,1725417049985,-172.21590805,0.00027397,2]
[337086375,1725417049995,-500.0,0.00027397,2]
[337086376,1725417050005,-510.51808892,0.00027397,2]
[337086377,1725417050015,-373.89323076,0.00027397,2]
[337086378,1725417050024,-500.0,0.00027397,2]
[337086379,1725417050034,-500.0,0.00027397,2]
[337086380,1725417050043,-1362.9,0.00027397,2]
[337086381,1725417050051,-500.0,0.00027397,2]
[337086382,1725417050061,-502.32980481,0.00027397,2]
[337086383,1725417050070,-503.43825189,0.00027397,2]
[337086384,1725417050079,-500.0,0.00027397,2]
[337086385,1725417050091,-500.0,0.00027397,2]
[337086386,1725417050102,-500.0,0.00027397,2]
[337086387,1725417050112,-257.3949171,0.00027397,2]
[337086388,1725417050122,-500.0,0.00027397,2]
[337086389,1725417050132,-500.0,0.00027397,2]
[337086390,1725417050143,-500.0,0.00027397,2]
[337086391,1725417050152,-486.65651366,0.00027397,2]
[337086392,1725417050162,-500.0,0.00027397,2]
[337086393,1725417050171,-503.18078008,0.00027397,2]
[337086394,1725417050180,-500.0,0.00027397,2]
[337086395,1725417050190,-500.0,0.00027397,2]
[337086396,1725417050202,-500.0,0.00027397,2]
[337086397,1725417050211,-509.30471979,0.00027397,2]
[337086398,1725417050221,-509.13751422,0.00027397,2]
[337086399,1725417050231,-500.0,0.00027397,2]
[337086400,1725417050240,-503.88292467,0.00027397,2]
[337086401,1725417050250,-500.0,0.00027397,2]
[337086402,1725417050259,-500.0,0.00027397,2]
[337086403,1725417050271,-500.0,0.00027397,2]
[337086404,1725417050283,-500.0,0.00027397,2]
[337086405,1725417050294,-500.0,0.00027397,2]
[337086406,1725417050306,-500.0,0.00027397,2]
[337086407,1725417050316,-500.0,0.00027397,2]
[337086408,1725417050326,-2511.12,0.00027397,2]
[337086409,1725417050337,-500.0,0.00027397,2]
[337086410,1725417050349,-502.57978369,0.00027397,2]
[337086411,1725417050360,-500.0,0.00027397,2]
[337086412,1725417050370,-500.0,0.00027397,2]
[337086413,1725417050381,-175.29379461,0.00027397,2]
[337086414,1725417050475,-500.0,0.00027397,2]
[337086415,1725417050484,-500.0,0.00027397,2]
[337086416,1725417050494,-500.0,0.00027397,2]
[337086417,1725417050503,-506.3094411,0.00027397,2]
[337086418,1725417050513,-157.78905862,0.00027397,2]
[337086419,1725417050522,-500.0,0.00027397,2]
[337086420,1725417050532,-500.0,0.00027397,2]
[337086421,1725417050542,-501.60916017,0.00027397,2]
[337086422,1725417050551,-500.0,0.00027397,2]
[337086423,1725417050560,-500.0,0.00027397,2]
[337086424,1725417050569,-988.22,0.00027397,2]
[337086425,1725417050579,-500.0,0.00027397,2]
[337086426,1725417050588,-500.0,0.00027397,2]
[337086427,1725417050597,-500.0,0.00027397,2]
[337086428,1725417050607,-1562.21,0.00027397,2]
[337086429,1725417050618,-500.0,0.00027397,2]
[337086430,1725417050628,-501.53396496,0.00027397,2]
[337086431,1725417050637,-823.4,0.00027397,2]
[337086432,1725417050646,-502.3399746,0.00027397,2]
[337086433,1725417050655,-500.0,0.00027397,2]
[337086434,1725417050664,-500.0,0.00027397,2]
[337086435,1725417050673,-500.0,0.00027397,2]
[337086436,1725417050683,-500.0,0.00027397,2]
[337086437,1725417050693,-500.0,0.00027397,2]
[337086438,1725417050704,-500.0,0.00027397,2]
[337086439,1725417050714,-500.0,0.00027397,2]
[337086440,1725417050724,-500.0,0.00027397,2]
[337086441,1725417050735,-192.2399073,0.00027397,2]
[337086442,1725417050746,-500.0,0.00027397,2]
[337086443,1725417050757,-500.0,0.00027397,2]
[337086444,1725417050768,-500.0,0.00027397,2]
[337086445,1725417050779,-879.01,0.00027397,2]
[337086446,1725417050790,-961.39,0.00027397,2]
[337086447,1725417050802,-500.0,0.00027397,2]
[337086448,1725417050813,-500.0,0.00027397,2]
[337086449,1725417050822,-182.42957182,0.00027397,2]
[337086450,1725417050834,-500.0,0.00027397,2]
[337086451,1725417050844,-500.0,0.00027397,2]
[337086452,1725417050855,-500.0,0.00027397,2]
[337086453,1725417050868,-502.26816053,0.00027397,2]
[337086454,1725417050879,-500.0,0.00027397,2]
[337086455,1725417050889,-630.57,0.00027397,2]
[337086456,1725417050900,-3014.27,0.00027397,2]
[337086457,1725417050912,-500.0,0.00027397,2]
[337086458,1725417050921,-500.0,0.00027397,2]
[337086459,1725417050931,-500.0,0.00027397,2]
[337086460,1725417050943,-500.0,0.00027397,2]
[337086461,1725417050953,-500.0,0.00027397,2]
[337086462,1725417050963,-1975.99,0.00027397,2]
[337086463,1725417050973,-500.0,0.00027397,2]
[337086464,1725417050983,-3016.82,0.00027397,2]
[337086465,1725417050993,-151.0,0.00027397,7]
[337086466,1725417051003,-151.0,0.00027397,7]
[337086467,1725417051012,-151.0,0.00027397,7]
[337086468,1725417051021,-151.0,0.00027397,7]
[337086469,1725417051031,-154.864984,0.00027397,7]
[337086470,1725417051041,-501.22119052,0.00027397,2]
[337086471,1725417051051,-704.93,0.00027397,2]
[337086472,1725417051060,-500.0,0.00027397,2]
[337086473,1725417051070,-500.0,0.00027397,2]
[337086474,1725417051079,-500.0,0.00027397,2]
[337086475,1725417051090,-500.0,0.00027397,2]
[337086476,1725417051101,-500.0,0.00027397,2]
[337086477,1725417051111,-500.0,0.00027397,2]
[337086478,1725417051123,-645.15,0.00027397,2]
[337086479,1725417051132,-500.0,0.00027397,2]
[337086480,1725417051142,-3467.75,0.00027397,2]
[337086481,1725417051152,-500.0,0.00027397,2]
[337086482,1725417051162,-151.0,0.00027397,7]
[337086483,1725417051172,-151.0,0.00027397,7]
[337086484,1725417051182,-151.0,0.00027397,7]
[337086485,1725417051192,-151.0,0.00027397,7]
[337086486,1725417051203,-151.0,0.00027397,7]
[337086487,1725417051213,-151.0,0.00027397,7]
[337086488,1725417051223,-151.0,0.00027397,7]
[337086489,1725417051232,-500.0,0.00027397,2]
[337086490,1725417051243,-500.0,0.00027397,2]
[337086491,1725417051252,-501.67964101,0.00027397,2]
[337086492,1725417051262,-579.75,0.00027397,2]
[337086493,1725417051271,-500.0,0.00027397,2]
[337086494,1725417051281,-60590.83,0.00027397,2]
[337086495,1725417051291,-500.0,0.00027397,2]
[337086496,1725417051301,-4457.7,0.00027397,2]
[337086497,1725417051310,-500.0,0.00027397,2]
[337086498,1725417051319,-500.0,0.00027397,2]
[337086499,1725417051329,-500.0,0.00027397,2]
[337086500,1725417051338,-1902.81,0.00027397,2]
[337086501,1725417051347,-500.0,0.00027397,2]
[337086502,1725417051357,-500.0,0.00027397,2]
[337086503,1725417051370,-500.0,0.00027397,2]
[337086504,1725417051380,-500.0,0.00027397,2]
[337086505,1725417051389,-500.0,0.00027397,2]
[337086506,1725417051399,-500.0,0.00027397,2]
[337086507,1725417051408,-518.07729311,0.00027397,2]
[337086508,1725417051417,-503.60848147,0.00027397,2]
[337086509,1725417051427,-500.0,0.00027397,2]
[337086510,1725417051436,-500.0,0.00027397,2]
[337086511,1725417051446,-523.3715018,0.00027397,2]
[337086512,1725417051456,-670.92,0.00027397,2]
[337086513,1725417051465,-500.0,0.00027397,2]
[337086514,1725417051475,-500.0,0.00027397,2]
[337086515,1725417051485,-1830.43,0.00027397,2]
[337086516,1725417051495,-6552.9,0.00027397,2]
[337086517,1725417051505,-500.0,0.00027397,2]
[337086518,1725417051515,-500.0,0.00027397,2]
[337086519,1725417051525,-500.0,0.00027397,2]
[337086520,1725417051535,-500.0,0.00027397,2]
[337086521,1725417051545,-27038.69,0.00027397,2]
[337086522,1725417051555,-500.0,0.00027397,2]
[337086523,1725417051565,-500.0,0.00027397,2]
[337086524,1725417051576,-603.51,0.00027397,2]
[337086525,1725417051586,-713.28,0.00027397,2]
[337086526,1725417051597,-500.0,0.00027397,2]
[337086527,1725417051607,-500.0,0.00027397,2]
[337086528,1725417051620,-500.0,0.00027397,2]
[337086529,1725417051630,-500.0,0.00027397,2]
[337086530,1725417051640,-500.0,0.00027397,2]
[337086531,1725417051650,-500.0,0.00027397,2]
[337086532,1725417051659,-500.0,0.00027397,2]
[337086533,1725417051669,-1600.29,0.00027397,2]
[337086534,1725417051678,-500.0,0.00027397,2]
[337086535,1725417051687,-500.0,0.00027397,2]
[337086536,1725417051697,-500.0,0.00027397,2]
[337086537,1725417051707,-500.0,0.00027397,2]
[337086538,1725417051717,-229.30479353,0.00027397,2]
[337086539,1725417051729,-500.0,0.00027397,2]
[337086540,1725417051740,-500.0,0.00027397,2]
[337086541,1725417051750,-500.0,0.00027397,2]
[337086542,1725417051759,-1661.237691,0.00027397,7]
[337086543,1725417051769,-506.54110749,0.00027397,2]
[337086544,1725417051778,-1661.237691,0.00027397,7]
[337086545,1725417051788,-1661.237691,0.00027397,7]
[337086546,1725417051798,-1661.237691,0.00027397,7]
[337086547,1725417051809,-1661.237691,0.00027397,7]
[337086548,1725417051819,-1661.237691,0.00027397,7]
[337086549,1725417051829,-1661.237691,0.00027397,7]
[337086550,1725417051839,-1167.84,0.00027397,2]
[337086551,1725417051849,-1661.237691,0.00027397,7]
[337086552,1725417051858,-2683.35,0.00027397,2]
[337086553,1725417051945,-1661.237691,0.00027397,7]
[337086554,1725417051954,-2310.23,0.00027397,2]
[337086555,1725417051964,-503.9498129,0.00027397,2]
[337086556,1725417051974,-1661.237691,0.00027397,7]
[337086557,1725417051983,-500.0,0.00027397,2]
[337086558,1725417051993,-1661.237691,0.00027397,7]
[337086559,1725417052003,-1661.237691,0.00027397,7]
[337086560,1725417052014,-1661.237691,0.00027397,7]
[337086561,1725417052024,-503.76702713,0.00027397,2]
[337086562,1725417052034,-1661.237688,0.00027397,7]
[337086563,1725417052043,-1605.45,0.00027397,2]
[337086564,1725417052055,-505.28446612,0.00027397,2]
[337086565,1725417052064,-502.18396883,0.00027397,2]
[337086566,1725417052074,-504.57104002,0.00027397,2]
[337086567,1725417052084,-500.0,0.00027397,2]
[337086568,1725417052094,-500.0,0.00027397,2]
[337086569,1725417052103,-4458.22,0.00027397,2]
[337086570,1725417052114,-500.0,0.00027397,2]
[337086571,1725417052125,-500.0,0.00027397,2]
[337086572,1725417052135,-527.68342404,0.00027397,2]
[337086573,1725417052145,-500.0,0.00027397,2]
[337086574,1725417052155,-1344.29,0.00027397,2]
[337086575,1725417052165,-500.0,0.00027397,2]
[337086576,1725417052176,-557.98482805,0.00027397,2]
[337086577,1725417052187,-7580.23,0.00027397,2]
[337086578,1725417052197,-1578.61,0.00027397,2]
[337086579,1725417052211,-502.02112873,0.00027397,2]
[337086580,1725417052220,-1305.39,0.00027397,2]
[337086581,1725417052231,-500.0,0.00027397,2]
[337086582,1725417052240,-500.0,0.00027397,2]
[337086583,1725417052251,-500.0,0.00027397,2]
[337086584,1725417052263,-500.0,0.00027397,2]
[337086585,1725417052273,-500.0,0.00027397,2]
[337086586,1725417052284,-500.0,0.00027397,2]
[337086587,1725417052296,-1528.68,0.00027397,2]
[337086588,1725417052306,-6579.5,0.00027397,2]
[337086589,1725417052315,-500.0,0.00027397,2]
[337086590,1725417052326,-706.72,0.00027397,2]
[337086591,1725417052337,-968.56,0.00027397,2]
[337086592,1725417052348,-151.0,0.00027397,7]
[337086593,1725417052358,-151.0,0.00027397,7]
[337086594,1725417052370,-151.0,0.00027397,7]
[337086595,1725417052380,-404.642863,0.00027397,7]
[337086596,1725417052389,-404.642863,0.00027397,7]
[337086597,1725417052399,-561.83765899,0.00027397,2]
[337086598,1725417052408,-151.0,0.00027397,7]
[337086599,1725417052417,-151.0,0.00027397,7]
[337086600,1725417052426,-404.642863,0.00027397,7]
[337086601,1725417052436,-197.107541,0.00027397,7]
[337086602,1725417052445,-404.642863,0.00027397,7]
[337086603,1725417052456,-404.642863,0.00027397,7]
[337086604,1725417052465,-404.642863,0.00027397,7]
[337086605,1725417052475,-500.0,0.00027397,2]
[337086606,1725417052485,-404.642863,0.00027397,7]
[337086607,1725417052495,-404.642863,0.00027397,7]
[337086608,1725417052506,-500.0,0.00027397,2]
[337086609,1725417052516,-404.642863,0.00027397,7]
[337086610,1725417052527,-500.0,0.00027397,2]
[337086611,1725417052538,-10791.0,0.00027397,2]
[337086612,1725417052548,-3236.16,0.00027397,2]
[337086613,1725417052559,-500.0,0.00027397,2]
[337086614,1725417052569,-404.642863,0.00027397,7]
[337086615,1725417052578,-404.642863,0.00027397,7]
[337086616,1725417052588,-814.94,0.00027397,2]
[337086617,1725417052598,-404.642863,0.00027397,7]
[337086618,1725417052609,-404.642863,0.00027397,7]
[337086619,1725417052620,-404.642863,0.00027397,7]
[337086620,1725417052631,-500.0,0.00027397,2]
[337086621,1725417052640,-404.642863,0.00027397,7]
[337086622,1725417052650,-500.0,0.00027397,2]
[337086623,1725417052659,-404.642863,0.00027397,7]
[337086624,1725417052668,-404.642863,0.00027397,7]
[337086625,1725417052678,-404.64285514,0.00027397,7]
[337086626,1725417052688,-500.0,0.00027397,2]
[337086627,1725417052697,-500.0,0.00027397,2]
[337086628,1725417052706,-1206.91,0.00027397,2]
[337086629,1725417052716,-12620.37,0.00027397,2]
[337086630,1725417052725,-500.0,0.00027397,2]
[337086631,1725417052735,-744.92,0.00027397,2]
[337086632,1725417052746,-500.0,0.00027397,2]
[337086633,1725417052756,-500.0,0.00027397,2]
[337086634,1725417052766,-500.0,0.00027397,2]
[337086635,1725417052775,-1328.8,0.00027397,2]
[337086636,1725417052785,-500.0,0.00027397,2]
[337086637,1725417052794,-500.0,0.00027397,2]
[337086638,1725417052803,-500.0,0.00027397,2]
[337086639,1725417052812,-500.0,0.00027397,2]
[337086640,1725417052822,-500.0,0.00027397,2]
[337086641,1725417052831,-611.31459221,0.00027397,2]
[337086642,1725417052841,-500.0,0.00027397,2]
[337086643,1725417052852,-500.0,0.00027397,2]
[337086644,1725417052862,-500.0,0.00027397,2]
[337086645,1725417052872,-504.05311536,0.00027397,2]
[337086646,1725417052884,-500.0,0.00027397,2]
[337086647,1725417052895,-500.0,0.00027397,2]
[337086648,1725417052906,-500.0,0.00027397,2]
[337086649,1725417052917,-500.0,0.00027397,2]
[337086650,1725417052926,-500.0,0.00027397,2]
[337086651,1725417052935,-1129.95,0.00027397,2]
[337086652,1725417052944,-12988.85,0.00027397,2]
[337086653,1725417052953,-500.0,0.00027397,2]
[337086654,1725417052963,-500.0,0.00027397,2]
[337086655,1725417052972,-500.0,0.00027397,2]
[337086656,1725417052982,-262.17231556,0.00027397,2]
[337086657,1725417052991,-500.0,0.00027397,2]
[337086658,1725417053000,-1030.12909326,0.00027397,2]
[337086659,1725417053010,-500.0,0.00027397,2]
[337086660,1725417053019,-1069.7,0.00027397,2]
[337086661,1725417053028,-803.92,0.00027397,2]
[337086662,1725417053037,-279.78118654,0.00027397,2]
[337086663,1725417053047,-500.0,0.00027397,2]
[337086664,1725417053056,-801.13,0.00027397,2]
[337086665,1725417053065,-534.86031004,0.00027397,2]
[337086666,1725417053074,-5294.22,0.00027397,2]
[337086667,1725417053083,-500.0,0.00027397,2]
[337086668,1725417053093,-1810.95,0.00027397,2]
[337086669,1725417053102,-565.48,0.00027397,2]
[337086670,1725417053111,-500.0,0.00027397,2]
[337086671,1725417053121,-500.0,0.00027397,2]
[337086672,1725417053130,-636.63,0.00027397,2]
[337086673,1725417053139,-500.0,0.00027397,2]
[337086674,1725417053148,-907.41,0.00027397,2]
[337086675,1725417053158,-500.0,0.00027397,2]
[337086676,1725417053167,-617.18,0.00027397,2]
[337086677,1725417053177,-500.0,0.00027397,2]
[337086678,1725417053186,-500.0,0.00027397,2]
[337086679,1725417053195,-500.74771681,0.00027397,2]
[337086680,1725417053208,-500.0,0.00027397,2]
[337086681,1725417053288,-500.0,0.00027397,2]
[337086682,1725417053298,-506.57535188,0.00027397,2]
[337086683,1725417053307,-626.98,0.00027397,2]
[337086684,1725417053317,-500.0,0.00027397,2]
[337086685,1725417053326,-597.55547713,0.00027397,2]
[337086686,1725417053335,-921.03,0.00027397,2]
[337086687,1725417053344,-616.57,0.00027397,2]
[337086688,1725417053353,-500.0,0.00027397,2]
[337086689,1725417053362,-500.0,0.00027397,2]
[337086690,1725417053381,-500.0,0.00027397,2]
[337086691,1725417053391,-504.84242951,0.00027397,2]
[337086692,1725417053400,-1111.15,0.00027397,2]
[337086693,1725417053409,-500.0,0.00027397,2]
[337086694,1725417053419,-500.0,0.00027397,2]
[337086695,1725417053428,-500.0,0.00027397,2]
[337086696,1725417053437,-499.58706048,0.00027397,2]
[337086697,1725417053446,-500.0,0.00027397,2]
[337086698,1725417053455,-500.0,0.00027397,2]
[337086699,1725417053465,-502.31174423,0.00027397,2]
[337086700,1725417053474,-501.6401002,0.00027397,2]
[337086701,1725417053483,-500.0,0.00027397,2]
[337086702,1725417053492,-500.0,0.00027397,2]
[337086703,1725417053502,-500.0,0.00027397,2]
[337086704,1725417053511,-500.0,0.00027397,2]
[337086705,1725417053521,-500.0,0.00027397,2]
[337086706,1725417053530,-503.12993496,0.00027397,2]
[337086707,1725417053540,-503.58371668,0.00027397,2]
[337086708,1725417053549,-500.0,0.00027397,2]
[337086709,1725417053558,-502.07962527,0.00027397,2]
[337086710,1725417053568,-500.0,0.00027397,2]
[337086711,1725417053577,-1000.0,0.00027397,28]
[337086712,1725417053586,-500.0,0.00027397,2]
[337086713,1725417053595,-1000.0,0.00027397,28]
[337086714,1725417053604,-1000.0,0.00027397,28]
[337086715,1725417053613,-1000.0,0.00027397,28]
[337086716,1725417053622,-1000.0,0.00027397,28]
[337086717,1725417053631,-1000.0,0.00027397,28]
[337086718,1725417053640,-500.0,0.00027397,2]
[337086719,1725417053649,-1000.0,0.00027397,28]
[337086720,1725417053659,-500.0,0.00027397,2]
[337086721,1725417053667,-1674.79,0.00027397,2]
[337086722,1725417053677,-1000.0,0.00027397,28]
[337086723,1725417053686,-1474.04,0.00027397,2]
[337086724,1725417053695,-501.04171013,0.00027397,2]
[337086725,1725417053705,-500.0,0.00027397,2]
[337086726,1725417053715,-1000.0,0.00027397,28]
[337086727,1725417053724,-1000.0,0.00027397,28]
[337086728,1725417053733,-1000.0,0.00027397,28]
[337086729,1725417053742,-1207.24,0.00027397,2]
[337086730,1725417053752,-1000.0,0.00027397,28]
[337086731,1725417053761,-1000.0,0.00027397,28]
[337086732,1725417053770,-1000.0,0.00027397,28]
[337086733,1725417053779,-500.0,0.00027397,2]
[337086734,1725417053788,-1000.0,0.00027397,28]
[337086735,1725417053798,-1000.0,0.00027397,28]
[337086736,1725417053807,-223.09586328,0.00027397,2]
[337086737,1725417053816,-168.880153,0.00027397,28]
[337086738,1725417053825,-500.0,0.00027397,2]
[337086739,1725417053834,-5437.43,0.00027397,2]
[337086740,1725417053843,-500.0,0.00027397,2]
[337086741,1725417053853,-656.41,0.00027397,2]
[337086742,1725417053863,-676.23,0.00027397,2]
[337086743,1725417053875,-504.36539858,0.00027397,2]
[337086744,1725417053884,-701.55,0.00027397,2]
[337086745,1725417053894,-500.0,0.00027397,2]
[337086746,1725417053903,-500.0,0.00027397,2]
[337086747,1725417053912,-1083.59,0.00027397,2]
[337086748,1725417053923,-502.34030198,0.00027397,2]
[337086749,1725417053934,-500.0,0.00027397,2]
[337086750,1725417053945,-500.0,0.00027397,2]
[337086751,1725417053956,-500.0,0.00027397,2]
[337086752,1725417053966,-508.58,0.00027397,2]
[337086753,1725417053978,-151.0,0.00027397,7]
[337086754,1725417053988,-151.0,0.00027397,7]
[337086755,1725417053998,-151.0,0.00027397,7]
[337086756,1725417054008,-151.0,0.00027397,7]
[337086757,1725417054019,-151.0,0.00027397,7]
[337086758,1725417054030,-167.533334,0.00027397,7]
[337086759,1725417054041,-500.0,0.00027397,2]
[337086760,1725417054050,-636.14,0.00027397,2]
[337086761,1725417054059,-500.0,0.00027397,2]
[337086762,1725417054069,-513.78038234,0.00027397,2]
[337086763,1725417054078,-1721.99,0.00027397,2]
[337086764,1725417054087,-500.0,0.00027397,2]
[337086765,1725417054097,-119791.66,0.00027397,2]
[337086766,1725417054106,-500.0,0.00027397,2]
[337086767,1725417054118,-4640.63,0.00027397,2]
[337086768,1725417054127,-500.0,0.00027397,2]
[337086769,1725417054136,-500.0,0.00027397,2]
[337086770,1725417054146,-591.4,0.00027397,2]
[337086771,1725417054155,-151.0,0.00027397,7]
[337086772,1725417054165,-186.065363,0.00027397,7]
[337086773,1725417054174,-1679.76,0.000274,14]
[337086774,1725417054185,-150.112233,0.000274,9]
[337086775,1725417054196,-268.096754,0.000274,8]
[337086776,1725417054210,-160.0,0.00027487,5]
[337086777,1725417054219,-1483.21736042,0.00027614,2]
[337086778,1725417054229,-500.0,0.00027671,2]
[337086779,1725417054238,-793.08,0.00027671,2]
[337086780,1725417054249,-500.0,0.00027671,2]
[337086781,1725417054259,-500.0,0.00027671,2]
[337086782,1725417054268,-500.0,0.00027671,2]
[337086783,1725417054279,-500.0,0.00027671,2]
[337086784,1725417054290,-500.0,0.00027671,2]
[337086785,1725417054298,-500.0,0.00027671,2]
[337086786,1725417054307,-500.0,0.00027671,2]
[337086787,1725417054316,-500.0,0.00027671,2]
[337086788,1725417054325,-507.11836116,0.00027671,2]
[337086789,1725417054334,-500.0,0.00027671,2]
[337086790,1725417054343,-500.0,0.00027671,2]
[337086791,1725417054352,-500.0,0.00027671,2]
[337086792,1725417054361,-500.0,0.00027671,2]
[337086793,1725417054375,-507.90396879,0.00027671,2]
[337086794,1725417054384,-500.0,0.00027671,2]
[337086795,1725417054393,-500.0,0.00027671,2]
[337086796,1725417054403,-500.0,0.00027671,2]
[337086797,1725417054412,-500.0,0.00027671,2]
[337086798,1725417054489,-503.19307764,0.00027671,2]
[337086799,1725417054499,-500.0,0.00027671,2]
[337086800,1725417054508,-500.0,0.00027671,2]
[337086801,1725417054518,-504.95515002,0.00027671,2]
[337086802,1725417054528,-500.0,0.00027671,2]
[337086803,1725417054540,-500.0,0.00027671,2]
[337086804,1725417054551,-500.0,0.00027671,2]